[Event "*** Titled Tuesday Blitz"]
[Site "Chess.com"]
[Date "2020.10.27"]
[Round "4"]
[White "Fighter008"]
[Black "eljanov"]
[Result "1-0"]
[WhiteElo "2692"]
[BlackElo "2864"]
[TimeControl "180+1"]
[EndTime "10:38:17 PDT"]
[Termination "Fighter008 won by resignation"]

1. e4 {[%clk 0:03:00.9]} 1... c6 {[%clk 0:02:57.5]} 2. Nc3 {[%clk 0:02:59.9]}
2... d5 {[%clk 0:02:57.2]} 3. d4 {[%clk 0:02:59.1]} 3... dxe4 {[%clk 0:02:57]}
4. Nxe4 {[%clk 0:03:00]} 4... Bf5 {[%clk 0:02:57.7]} 5. Ng3 {[%clk 0:02:59.7]}
5... Bg6 {[%clk 0:02:58]} 6. N1e2 {[%clk 0:03:00.3]} 6... Nf6 {[%clk 0:02:57.5]}
7. h4 {[%clk 0:02:58.8]} 7... h6 {[%clk 0:02:46.8]} 8. Nf4 {[%clk 0:02:58.5]}
8... Bh7 {[%clk 0:02:47.2]} 9. Bc4 {[%clk 0:02:59]} 9... e6 {[%clk 0:02:46.7]}
10. c3 {[%clk 0:02:58.1]} 10... Nd5 {[%clk 0:02:38.2]} 11. Qe2 {[%clk
0:02:47.4]} 11... Nxf4 {[%clk 0:02:13.8]} 12. Bxf4 {[%clk 0:02:42.7]} 12... Bd6
{[%clk 0:02:09.1]} 13. Nh5 {[%clk 0:02:33.4]} 13... Bxf4 {[%clk 0:02:03.2]} 14.
Nxf4 {[%clk 0:02:32.3]} 14... Qe7 {[%clk 0:01:44]} 15. Qg4 {[%clk 0:02:23.4]}
15... O-O {[%clk 0:01:35.7]} 16. O-O {[%clk 0:02:17.9]} 16... Bf5 {[%clk
0:01:30.9]} 17. Qg3 {[%clk 0:02:16.7]} 17... Nd7 {[%clk 0:01:29.1]} 18. Nh5
{[%clk 0:02:07.1]} 18... g6 {[%clk 0:01:21.1]} 19. Rfe1 {[%clk 0:02:04.2]} 19...
Rad8 {[%clk 0:01:10.3]} 20. Nf4 {[%clk 0:01:57.6]} 20... Nf6 {[%clk 0:01:00.8]}
21. Bd3 {[%clk 0:01:46.6]} 21... Bxd3 {[%clk 0:00:58.7]} 22. Nxd3 {[%clk
0:01:47.5]} 22... Qd6 {[%clk 0:00:47.9]} 23. Ne5 {[%clk 0:01:44.4]} 23... Nd7
{[%clk 0:00:47.8]} 24. h5 {[%clk 0:01:42.9]} 24... Nxe5 {[%clk 0:00:44.3]} 25.
Rxe5 {[%clk 0:01:28.4]} 25... g5 {[%clk 0:00:41.3]} 26. Rae1 {[%clk 0:01:25.5]}
26... Rfe8 {[%clk 0:00:41.2]} 27. f4 {[%clk 0:01:16.5]} 27... f6 {[%clk
0:00:41.1]} 28. fxg5 {[%clk 0:00:57.3]} 28... hxg5 {[%clk 0:00:41.2]} 29. Rxg5+
{[%clk 0:00:50]} 29... fxg5 {[%clk 0:00:40.8]} 30. Qxg5+ {[%clk 0:00:50.5]}
30... Kh7 {[%clk 0:00:37.1]} 31. Qg6+ {[%clk 0:00:49.6]} 31... Kh8 {[%clk
0:00:37.3]} 32. Qh6+ {[%clk 0:00:27.2]} 32... Kg8 {[%clk 0:00:37.3]} 33. Re5
{[%clk 0:00:20.7]} 33... Rf8 {[%clk 0:00:32.4]} 34. Qg6+ {[%clk 0:00:19.6]}
34... Kh8 {[%clk 0:00:32.5]} 35. Qh6+ {[%clk 0:00:19.5]} 35... Kg8 {[%clk
0:00:33]} 36. Rg5+ {[%clk 0:00:15.8]} 36... Kf7 {[%clk 0:00:33.2]} 37. Rg7+
{[%clk 0:00:15.9]} 37... Ke8 {[%clk 0:00:33.7]} 38. Qg6+ {[%clk 0:00:16]} 1-0

[Event "*** Titled Tuesday Blitz"]
[Site "Chess.com"]
[Date "2020.10.27"]
[Round "4"]
[White "Ginger_GM"]
[Black "fireheart92"]
[Result "0-1"]
[WhiteElo "2571"]
[BlackElo "2872"]
[TimeControl "180+1"]
[EndTime "10:38:17 PDT"]
[Termination "fireheart92 won by resignation"]

1. f4 {[%clk 0:02:57.7]} 1... e5 {[%clk 0:02:59.4]} 2. e4 {[%clk 0:02:57.2]}
2... d5 {[%clk 0:02:51.7]} 3. exd5 {[%clk 0:02:56.7]} 3... exf4 {[%clk
0:02:51.9]} 4. Nf3 {[%clk 0:02:56.5]} 4... Nf6 {[%clk 0:02:45.3]} 5. Bc4 {[%clk
0:02:56.2]} 5... Nxd5 {[%clk 0:02:43.5]} 6. Nc3 {[%clk 0:02:55.9]} 6... Nxc3
{[%clk 0:02:12.6]} 7. dxc3 {[%clk 0:02:55.6]} 7... Qxd1+ {[%clk 0:01:58]} 8.
Kxd1 {[%clk 0:02:56.5]} 8... Bd6 {[%clk 0:01:46.9]} 9. Re1+ {[%clk 0:02:55.8]}
9... Be6 {[%clk 0:01:41.9]} 10. Bxe6 {[%clk 0:02:08.1]} 10... fxe6 {[%clk
0:01:42.8]} 11. Rxe6+ {[%clk 0:02:08.1]} 11... Kd7 {[%clk 0:01:42.2]} 12. Re4
{[%clk 0:02:07.2]} 12... Rf8 {[%clk 0:01:39]} 13. Ke2 {[%clk 0:01:29.2]} 13...
Nc6 {[%clk 0:01:34.4]} 14. Bd2 {[%clk 0:01:25.3]} 14... h6 {[%clk 0:01:08.7]}
15. h4 {[%clk 0:01:24.1]} 15... Rae8 {[%clk 0:01:00.5]} 16. Kd3 {[%clk
0:01:22.2]} 16... Rxe4 {[%clk 0:00:58.2]} 17. Kxe4 {[%clk 0:01:23.1]} 17... Re8+
{[%clk 0:00:58.5]} 18. Kd3 {[%clk 0:01:17.2]} 18... b5 {[%clk 0:00:33.2]} 19.
Rf1 {[%clk 0:01:12]} 19... g5 {[%clk 0:00:28.7]} 20. hxg5 {[%clk 0:00:58.9]}
20... hxg5 {[%clk 0:00:29.6]} 21. Nd4 {[%clk 0:00:34.5]} 21... Ne5+ {[%clk
0:00:28.5]} 22. Ke2 {[%clk 0:00:34.1]} 22... Nc4+ {[%clk 0:00:28.5]} 23. Kd1
{[%clk 0:00:30.1]} 23... Nxb2+ {[%clk 0:00:25.8]} 24. Kc1 {[%clk 0:00:30.3]}
24... Nc4 {[%clk 0:00:22.7]} 25. Nxb5 {[%clk 0:00:29.6]} 25... Bc5 {[%clk
0:00:22.7]} 26. Rd1 {[%clk 0:00:19.6]} 26... Kc6 {[%clk 0:00:21.2]} 27. Nd4+
{[%clk 0:00:19.4]} 27... Bxd4 {[%clk 0:00:21.5]} 28. cxd4 {[%clk 0:00:20.3]}
28... Re2 {[%clk 0:00:21.7]} 29. d5+ {[%clk 0:00:18.8]} 29... Kc5 {[%clk
0:00:20.2]} 30. g3 {[%clk 0:00:17.5]} 30... Rxd2 {[%clk 0:00:18.5]} 31. Rg1
{[%clk 0:00:14.5]} 31... f3 {[%clk 0:00:17.7]} 0-1

[Event "*** Titled Tuesday Blitz"]
[Site "Chess.com"]
[Date "2020.10.27"]
[Round "4"]
[White "LuisFSiles"]
[Black "Gulkov_Igor"]
[Result "1/2-1/2"]
[WhiteElo "2294"]
[BlackElo "2459"]
[TimeControl "180+1"]
[EndTime "10:38:19 PDT"]
[Termination "Game drawn by repetition"]

1. e4 {[%clk 0:03:00.9]} 1... c5 {[%clk 0:02:58.5]} 2. c3 {[%clk 0:02:59.8]}
2... Nf6 {[%clk 0:02:55.3]} 3. e5 {[%clk 0:02:58]} 3... Nd5 {[%clk 0:02:50.2]}
4. d4 {[%clk 0:02:55.9]} 4... cxd4 {[%clk 0:02:49.6]} 5. Nf3 {[%clk 0:02:52.7]}
5... d6 {[%clk 0:02:48.7]} 6. cxd4 {[%clk 0:02:50.4]} 6... Nc6 {[%clk
0:02:48.3]} 7. Bc4 {[%clk 0:02:49.8]} 7... Nb6 {[%clk 0:02:47.3]} 8. Bb5 {[%clk
0:02:47.8]} 8... dxe5 {[%clk 0:02:47]} 9. Nxe5 {[%clk 0:02:47.2]} 9... Bd7
{[%clk 0:02:46.6]} 10. Nxd7 {[%clk 0:02:45]} 10... Qxd7 {[%clk 0:02:46.2]} 11.
Nc3 {[%clk 0:02:40.1]} 11... Rd8 {[%clk 0:02:46]} 12. Be3 {[%clk 0:02:30.4]}
12... e6 {[%clk 0:02:46.1]} 13. Qg4 {[%clk 0:02:22.3]} 13... h5 {[%clk
0:02:44.4]} 14. Qf3 {[%clk 0:02:20.6]} 14... a6 {[%clk 0:02:39.7]} 15. Bxc6
{[%clk 0:02:16.2]} 15... Qxc6 {[%clk 0:02:38.2]} 16. Qxc6+ {[%clk 0:02:10.3]}
16... bxc6 {[%clk 0:02:36.3]} 17. O-O {[%clk 0:02:01.6]} 17... Kd7 {[%clk
0:02:33.2]} 18. Rac1 {[%clk 0:01:54.3]} 18... Be7 {[%clk 0:02:24.7]} 19. Ne4
{[%clk 0:01:53.4]} 19... Nd5 {[%clk 0:02:21.9]} 20. Rfd1 {[%clk 0:01:34.4]}
20... Rb8 {[%clk 0:02:20.6]} 21. b3 {[%clk 0:01:31.6]} 21... Rb5 {[%clk
0:02:18]} 22. Rc4 {[%clk 0:01:22.6]} 22... Rc8 {[%clk 0:02:13.5]} 23. Rdc1
{[%clk 0:01:13]} 23... Rb4 {[%clk 0:02:07.6]} 24. Nd2 {[%clk 0:01:06.9]} 24...
Nb6 {[%clk 0:01:41.7]} 25. Rxb4 {[%clk 0:00:54.9]} 25... Bxb4 {[%clk 0:01:40.4]}
26. Nc4 {[%clk 0:00:54.9]} 26... Nxc4 {[%clk 0:01:36.6]} 27. bxc4 {[%clk
0:00:55.8]} 27... Bd6 {[%clk 0:01:24.7]} 28. Rb1 {[%clk 0:00:55.1]} 28... Rb8
{[%clk 0:01:24.5]} 29. Rxb8 {[%clk 0:00:54.4]} 29... Bxb8 {[%clk 0:01:24.3]} 30.
h3 {[%clk 0:00:51.7]} 30... f5 {[%clk 0:01:16.7]} 31. f4 {[%clk 0:00:41.5]}
31... Bd6 {[%clk 0:01:00.6]} 32. Kf2 {[%clk 0:00:41]} 32... Bb4 {[%clk
0:00:54.7]} 33. h4 {[%clk 0:00:38.7]} 33... g6 {[%clk 0:00:50.7]} 34. Ke2 {[%clk
0:00:37.3]} 34... Kc7 {[%clk 0:00:49.3]} 35. Bd2 {[%clk 0:00:37.4]} 35... Be7
{[%clk 0:00:41.4]} 36. g3 {[%clk 0:00:34.3]} 36... Kb6 {[%clk 0:00:41.5]} 37. a4
{[%clk 0:00:27.1]} 37... Kc7 {[%clk 0:00:38.2]} 38. c5 {[%clk 0:00:25.3]} 38...
Kd7 {[%clk 0:00:35.5]} 39. Kd3 {[%clk 0:00:24.7]} 39... Bd8 {[%clk 0:00:33.6]}
40. Bc3 {[%clk 0:00:23.1]} 40... Bc7 {[%clk 0:00:33.5]} 41. Bd2 {[%clk
0:00:22.6]} 41... Bd8 {[%clk 0:00:33.7]} 42. Bc3 {[%clk 0:00:22.9]} 42... Bc7
{[%clk 0:00:34]} 43. Bd2 {[%clk 0:00:23.2]} 43... Bd8 {[%clk 0:00:34.4]} 1/2-1/2

[Event "*** Titled Tuesday Blitz"]
[Site "Chess.com"]
[Date "2020.10.27"]
[Round "4"]
[White "KaterynaLagno"]
[Black "CM_rui"]
[Result "1-0"]
[WhiteElo "2685"]
[BlackElo "2370"]
[TimeControl "180+1"]
[EndTime "10:38:20 PDT"]
[Termination "KaterynaLagno won by resignation"]

1. e4 {[%clk 0:03:00.9]} 1... e5 {[%clk 0:02:58.8]} 2. Nf3 {[%clk 0:03:00.9]}
2... Nc6 {[%clk 0:02:57.8]} 3. Bb5 {[%clk 0:03:01.5]} 3... a6 {[%clk 0:02:56.5]}
4. Ba4 {[%clk 0:03:02.1]} 4... Nf6 {[%clk 0:02:56.2]} 5. O-O {[%clk 0:03:02.7]}
5... Be7 {[%clk 0:02:55.7]} 6. d3 {[%clk 0:03:03]} 6... b5 {[%clk 0:02:55.3]} 7.
Bb3 {[%clk 0:03:03.2]} 7... O-O {[%clk 0:02:56.2]} 8. c3 {[%clk 0:03:02.1]} 8...
d6 {[%clk 0:02:54.6]} 9. Nbd2 {[%clk 0:03:02.1]} 9... Na5 {[%clk 0:02:54.2]} 10.
Bc2 {[%clk 0:03:02.4]} 10... c5 {[%clk 0:02:54.7]} 11. Re1 {[%clk 0:03:02.8]}
11... h6 {[%clk 0:02:53.7]} 12. Nf1 {[%clk 0:03:01.8]} 12... Re8 {[%clk
0:02:53.8]} 13. Ng3 {[%clk 0:02:59.7]} 13... Bf8 {[%clk 0:02:54.2]} 14. h3
{[%clk 0:02:59.9]} 14... g6 {[%clk 0:02:53.7]} 15. d4 {[%clk 0:02:59.8]} 15...
cxd4 {[%clk 0:02:52.4]} 16. cxd4 {[%clk 0:02:59.6]} 16... exd4 {[%clk
0:02:48.3]} 17. Nxd4 {[%clk 0:02:56.5]} 17... Bg7 {[%clk 0:02:48.8]} 18. b3
{[%clk 0:02:48.6]} 18... Bb7 {[%clk 0:02:44.6]} 19. Bf4 {[%clk 0:02:48]} 19...
Rc8 {[%clk 0:02:36.4]} 20. Rc1 {[%clk 0:02:38]} 20... Nh7 {[%clk 0:02:09.7]} 21.
Qd2 {[%clk 0:02:31.5]} 21... Qf6 {[%clk 0:01:56.4]} 22. Nde2 {[%clk 0:02:12.4]}
22... Nc6 {[%clk 0:01:48.9]} 23. Bxh6 {[%clk 0:02:08.7]} 23... Bxh6 {[%clk
0:01:46.3]} 24. Qxh6 {[%clk 0:02:09.6]} 24... Ne5 {[%clk 0:01:41.4]} 25. Qf4
{[%clk 0:02:01.9]} 25... Qg7 {[%clk 0:01:27.6]} 26. Bb1 {[%clk 0:01:59.9]} 26...
Nf6 {[%clk 0:01:24]} 27. Rcd1 {[%clk 0:01:58.3]} 27... d5 {[%clk 0:01:14.3]} 28.
exd5 {[%clk 0:01:38.9]} 28... Nxd5 {[%clk 0:01:15.2]} 29. Qg5 {[%clk 0:01:39.1]}
29... Nb4 {[%clk 0:01:03.7]} 30. Nf4 {[%clk 0:01:31.3]} 30... Nc2 {[%clk
0:00:52.7]} 31. Bxc2 {[%clk 0:01:22.6]} 31... Rxc2 {[%clk 0:00:53.6]} 32. Ne4
{[%clk 0:00:52.8]} 32... Bxe4 {[%clk 0:00:42.9]} 33. Rxe4 {[%clk 0:00:53.7]}
33... Rxa2 {[%clk 0:00:39.4]} 34. Nd5 {[%clk 0:00:52.5]} 34... Re6 {[%clk
0:00:12.2]} 35. Nc7 {[%clk 0:00:52]} 35... Nf3+ {[%clk 0:00:04.1]} 36. gxf3
{[%clk 0:00:50]} 36... Rxe4 {[%clk 0:00:05]} 37. fxe4 {[%clk 0:00:49.6]} 37...
Qb2 {[%clk 0:00:05.7]} 38. Qe3 {[%clk 0:00:43.7]} 38... Qe5 {[%clk 0:00:04.7]}
39. Nd5 {[%clk 0:00:41.6]} 39... Qh5 {[%clk 0:00:04.4]} 40. Nf6+ {[%clk
0:00:39.9]} 1-0

[Event "*** Titled Tuesday Blitz"]
[Site "Chess.com"]
[Date "2020.10.27"]
[Round "4"]
[White "Sesleria"]
[Black "Matols"]
[Result "0-1"]
[WhiteElo "1892"]
[BlackElo "2238"]
[TimeControl "180+1"]
[EndTime "10:38:21 PDT"]
[Termination "Matols won on time"]

1. e4 {[%clk 0:00:51.2]} 1... e6 {[%clk 0:02:58.1]} 2. d4 {[%clk 0:00:50.6]}
2... d5 {[%clk 0:02:58.3]} 3. Nc3 {[%clk 0:00:50.9]} 3... Nf6 {[%clk 0:02:57.3]}
4. e5 {[%clk 0:00:50.9]} 4... Nfd7 {[%clk 0:02:57.1]} 5. Qh5 {[%clk 0:00:50.6]}
5... Qe7 {[%clk 0:02:21.3]} 6. Bg5 {[%clk 0:00:30]} 6... Qb4 {[%clk 0:02:18.2]}
7. O-O-O {[%clk 0:00:29.1]} 7... Nb6 {[%clk 0:02:10.6]} 8. Nb5 {[%clk
0:00:19.6]} 8... Na6 {[%clk 0:01:52.2]} 9. a3 {[%clk 0:00:19.4]} 9... Qa5 {[%clk
0:01:41.5]} 10. Bd2 {[%clk 0:00:19.1]} 10... Qa4 {[%clk 0:01:35.4]} 11. Nc3
{[%clk 0:00:17.2]} 11... Qd7 {[%clk 0:01:33.9]} 12. Bb5 {[%clk 0:00:15.6]} 12...
c6 {[%clk 0:01:32.1]} 13. Bd3 {[%clk 0:00:15.8]} 13... Nc7 {[%clk 0:01:28.5]}
14. f4 {[%clk 0:00:16]} 14... g6 {[%clk 0:01:23.7]} 15. Qh3 {[%clk 0:00:16.3]}
15... c5 {[%clk 0:01:20.6]} 16. dxc5 {[%clk 0:00:14.6]} 16... Bxc5 {[%clk
0:01:19.8]} 17. Nf3 {[%clk 0:00:14.8]} 17... Na4 {[%clk 0:01:10.6]} 18. Nxa4
{[%clk 0:00:11.5]} 18... Qxa4 {[%clk 0:01:09.9]} 19. Ng5 {[%clk 0:00:11.4]}
19... Bd7 {[%clk 0:01:05.8]} 20. Bc3 {[%clk 0:00:11.1]} 20... Qxf4+ {[%clk
0:01:00.5]} 21. Bd2 {[%clk 0:00:11.4]} 21... Qxe5 {[%clk 0:00:55]} 22. Rhe1
{[%clk 0:00:11]} 22... Qg7 {[%clk 0:00:51]} 23. Bc3 {[%clk 0:00:08.3]} 23... d4
{[%clk 0:00:49.9]} 24. Bxg6 {[%clk 0:00:06.4]} 24... hxg6 {[%clk 0:00:47.5]} 25.
Qf3 {[%clk 0:00:06.6]} 25... dxc3 {[%clk 0:00:40.5]} 26. Qxb7 {[%clk 0:00:06.8]}
26... cxb2+ {[%clk 0:00:39.6]} 27. Kb1 {[%clk 0:00:07.2]} 27... Rc8 {[%clk
0:00:34]} 28. Ne4 {[%clk 0:00:03.8]} 28... Bxa3 {[%clk 0:00:30.6]} 29. Rxd7
{[%clk 0:00:02.5]} 29... Kxd7 {[%clk 0:00:26.3]} 30. Rd1+ {[%clk 0:00:02.9]}
30... Ke7 {[%clk 0:00:22.1]} 0-1

[Event "*** Titled Tuesday Blitz"]
[Site "Chess.com"]
[Date "2020.10.27"]
[Round "4"]
[White "Sanyura"]
[Black "Karateloru"]
[Result "0-1"]
[WhiteElo "2487"]
[BlackElo "2666"]
[TimeControl "180+1"]
[EndTime "10:38:23 PDT"]
[Termination "Karateloru won by resignation"]

1. Nf3 {[%clk 0:01:59.7]} 1... d5 {[%clk 0:02:59]} 2. g3 {[%clk 0:02:00.6]} 2...
Nf6 {[%clk 0:02:58.5]} 3. d3 {[%clk 0:02:01.1]} 3... Bg4 {[%clk 0:02:58]} 4.
Nbd2 {[%clk 0:02:00.9]} 4... Nbd7 {[%clk 0:02:57.3]} 5. h3 {[%clk 0:02:00.4]}
5... Bh5 {[%clk 0:02:57]} 6. Bg2 {[%clk 0:02:00]} 6... e5 {[%clk 0:02:56.4]} 7.
O-O {[%clk 0:02:00.4]} 7... c6 {[%clk 0:02:55.8]} 8. g4 {[%clk 0:01:59.8]} 8...
Bg6 {[%clk 0:02:55.2]} 9. Nh4 {[%clk 0:01:58.6]} 9... Bc5 {[%clk 0:02:52.4]} 10.
Nxg6 {[%clk 0:01:58.5]} 10... hxg6 {[%clk 0:02:52]} 11. e4 {[%clk 0:01:59.2]}
11... dxe4 {[%clk 0:02:37.3]} 12. dxe4 {[%clk 0:02:00.1]} 12... Nf8 {[%clk
0:02:29.9]} 13. Nc4 {[%clk 0:01:56.7]} 13... Qc7 {[%clk 0:02:29.3]} 14. Be3
{[%clk 0:01:38.7]} 14... Bxe3 {[%clk 0:02:28.6]} 15. fxe3 {[%clk 0:01:39.6]}
15... Rd8 {[%clk 0:02:24.3]} 16. Qe2 {[%clk 0:01:37.7]} 16... Ne6 {[%clk
0:02:24.4]} 17. Rad1 {[%clk 0:01:35.3]} 17... O-O {[%clk 0:02:23.9]} 18. Qf2
{[%clk 0:01:33.8]} 18... b5 {[%clk 0:02:22.5]} 19. Nd2 {[%clk 0:01:32.7]} 19...
Rd7 {[%clk 0:02:19.1]} 20. Rde1 {[%clk 0:01:17.5]} 20... Rfd8 {[%clk 0:02:18.8]}
21. Re2 {[%clk 0:01:08.9]} 21... Qa5 {[%clk 0:02:18.2]} 22. c3 {[%clk 0:01:08]}
22... Qxa2 {[%clk 0:02:17.6]} 23. Nf3 {[%clk 0:01:02.3]} 23... Nxe4 {[%clk
0:02:15.5]} 24. Qh4 {[%clk 0:01:02.8]} 24... Nxc3 {[%clk 0:02:13.4]} 25. Rc2
{[%clk 0:00:45.5]} 25... Nd5 {[%clk 0:02:13.2]} 26. Nxe5 {[%clk 0:00:36.1]}
26... Nxe3 {[%clk 0:02:09.6]} 27. Nxd7 {[%clk 0:00:36.1]} 27... Nxf1 {[%clk
0:01:48.8]} 28. Rxc6 {[%clk 0:00:26]} 28... Rxd7 {[%clk 0:01:35.5]} 29. Rc8+
{[%clk 0:00:25.8]} 29... Nf8 {[%clk 0:01:35.7]} 30. Bc6 {[%clk 0:00:24.9]} 30...
Rd1 {[%clk 0:01:06.2]} 31. Qe7 {[%clk 0:00:10.3]} 31... Ne3+ {[%clk 0:01:05.6]}
32. Kf2 {[%clk 0:00:10.4]} 32... Qxb2+ {[%clk 0:01:05.7]} 33. Kf3 {[%clk
0:00:09.7]} 33... Rf1+ {[%clk 0:01:04.5]} 34. Ke4 {[%clk 0:00:10]} 34... Qc2+
{[%clk 0:01:02.3]} 35. Ke5 {[%clk 0:00:10.4]} 35... Qc3+ {[%clk 0:01:01]} 36.
Ke4 {[%clk 0:00:10.7]} 36... Qc4+ {[%clk 0:01:00.9]} 37. Ke5 {[%clk 0:00:10.5]}
37... Qe6+ {[%clk 0:01:00.9]} 38. Qxe6 {[%clk 0:00:10]} 38... fxe6 {[%clk
0:01:01.8]} 39. Bxb5 {[%clk 0:00:09.3]} 39... Re1 {[%clk 0:01:01.3]} 40. Kd6
{[%clk 0:00:06.7]} 40... Nd5 {[%clk 0:00:57.9]} 41. Bc4 {[%clk 0:00:04.9]} 41...
Rd1 {[%clk 0:00:56]} 0-1

[Event "*** Titled Tuesday Blitz"]
[Site "Chess.com"]
[Date "2020.10.27"]
[Round "4"]
[White "Volodar_Murzin"]
[Black "zverr1"]
[Result "1-0"]
[WhiteElo "2615"]
[BlackElo "2456"]
[TimeControl "180+1"]
[EndTime "10:38:24 PDT"]
[Termination "Volodar_Murzin won by resignation"]

1. e4 {[%clk 0:03:00.9]} 1... g6 {[%clk 0:02:53.1]} 2. d4 {[%clk 0:02:59.5]}
2... Bg7 {[%clk 0:02:50.1]} 3. Nf3 {[%clk 0:02:55.7]} 3... d6 {[%clk 0:02:45.1]}
4. Bc4 {[%clk 0:02:53.6]} 4... c6 {[%clk 0:02:39.2]} 5. h3 {[%clk 0:02:49.1]}
5... d5 {[%clk 0:02:34.9]} 6. exd5 {[%clk 0:02:47.6]} 6... cxd5 {[%clk
0:02:35.8]} 7. Bd3 {[%clk 0:02:48.1]} 7... Nf6 {[%clk 0:02:29.7]} 8. O-O {[%clk
0:02:44.7]} 8... Nc6 {[%clk 0:02:29.2]} 9. c3 {[%clk 0:02:43.3]} 9... O-O {[%clk
0:02:28.5]} 10. Re1 {[%clk 0:02:41.8]} 10... Qc7 {[%clk 0:02:26.3]} 11. Nbd2
{[%clk 0:02:36.1]} 11... Re8 {[%clk 0:02:20]} 12. Nf1 {[%clk 0:02:26.3]} 12...
Bd7 {[%clk 0:02:10.1]} 13. Bd2 {[%clk 0:02:16.9]} 13... Rad8 {[%clk 0:02:06.6]}
14. Qc1 {[%clk 0:02:15.8]} 14... e5 {[%clk 0:02:04.4]} 15. dxe5 {[%clk 0:02:10]}
15... Nxe5 {[%clk 0:01:56.9]} 16. Rxe5 {[%clk 0:02:05.4]} 16... Rxe5 {[%clk
0:01:57.8]} 17. Bf4 {[%clk 0:02:02.8]} 17... Nh5 {[%clk 0:01:52.4]} 18. Bh2
{[%clk 0:01:54.8]} 18... Rde8 {[%clk 0:01:10]} 19. Be2 {[%clk 0:01:36.3]} 19...
Qc5 {[%clk 0:00:34.6]} 20. Nxe5 {[%clk 0:01:31.9]} 20... Bxe5 {[%clk 0:00:35.5]}
21. Bxh5 {[%clk 0:01:30.6]} 21... Bxh2+ {[%clk 0:00:33.4]} 22. Nxh2 {[%clk
0:01:31.5]} 22... gxh5 {[%clk 0:00:30.5]} 23. Nf3 {[%clk 0:01:27.1]} 23... Bf5
{[%clk 0:00:29.6]} 24. Nd4 {[%clk 0:01:15.3]} 24... Bg6 {[%clk 0:00:29.5]} 25.
Qd2 {[%clk 0:01:13.4]} 25... b5 {[%clk 0:00:25.2]} 26. Re1 {[%clk 0:01:02.9]}
26... Rxe1+ {[%clk 0:00:20.5]} 27. Qxe1 {[%clk 0:01:03.8]} 27... b4 {[%clk
0:00:21.4]} 28. Qe8+ {[%clk 0:00:54.2]} 28... Kg7 {[%clk 0:00:21.8]} 29. Qe5+
{[%clk 0:00:52.2]} 29... Kg8 {[%clk 0:00:12.2]} 30. Qb8+ {[%clk 0:00:50.3]}
30... Kg7 {[%clk 0:00:12.9]} 31. Qxb4 {[%clk 0:00:48.8]} 31... Qxb4 {[%clk
0:00:13.5]} 32. cxb4 {[%clk 0:00:48]} 32... Kf6 {[%clk 0:00:14.4]} 33. f4 {[%clk
0:00:47.3]} 33... Bb1 {[%clk 0:00:13]} 34. a3 {[%clk 0:00:46.4]} 34... h4 {[%clk
0:00:12.4]} 35. Kf2 {[%clk 0:00:45.5]} 35... Be4 {[%clk 0:00:08.9]} 36. g3
{[%clk 0:00:41.1]} 36... hxg3+ {[%clk 0:00:08.5]} 37. Kxg3 {[%clk 0:00:42]}
37... a6 {[%clk 0:00:08.3]} 38. b5 {[%clk 0:00:38.7]} 38... Ke7 {[%clk
0:00:08.8]} 39. bxa6 {[%clk 0:00:37.7]} 1-0

[Event "*** Titled Tuesday Blitz"]
[Site "Chess.com"]
[Date "2020.10.27"]
[Round "4"]
[White "ajgreen"]
[Black "Trankuilizer"]
[Result "1/2-1/2"]
[WhiteElo "2355"]
[BlackElo "2562"]
[TimeControl "180+1"]
[EndTime "10:38:26 PDT"]
[Termination "Game drawn by agreement"]

1. e4 {[%clk 0:03:00.9]} 1... d6 {[%clk 0:03:00.9]} 2. d4 {[%clk 0:03:00.4]}
2... Nf6 {[%clk 0:03:01.5]} 3. Nc3 {[%clk 0:03:00.6]} 3... g6 {[%clk 0:03:01.5]}
4. Be3 {[%clk 0:03:00.5]} 4... Bg7 {[%clk 0:03:01.1]} 5. f3 {[%clk 0:03:00.6]}
5... O-O {[%clk 0:03:01.2]} 6. Qd2 {[%clk 0:03:00.8]} 6... c6 {[%clk 0:03:01.8]}
7. O-O-O {[%clk 0:03:00.8]} 7... b5 {[%clk 0:03:02.3]} 8. Bh6 {[%clk 0:02:52.9]}
8... Qa5 {[%clk 0:03:02.7]} 9. Kb1 {[%clk 0:02:52.6]} 9... b4 {[%clk 0:03:02.3]}
10. Nce2 {[%clk 0:02:50.3]} 10... Be6 {[%clk 0:03:02.5]} 11. Nc1 {[%clk
0:02:46.6]} 11... Bxh6 {[%clk 0:02:52.6]} 12. Qxh6 {[%clk 0:02:46.3]} 12... Qh5
{[%clk 0:02:53.5]} 13. Qd2 {[%clk 0:02:44.9]} 13... Kg7 {[%clk 0:02:53.5]} 14.
Qxb4 {[%clk 0:02:40.5]} 14... a5 {[%clk 0:02:53.6]} 15. Qd2 {[%clk 0:02:40.2]}
15... a4 {[%clk 0:02:49]} 16. g4 {[%clk 0:02:38.8]} 16... Qa5 {[%clk 0:02:48.9]}
17. Qxa5 {[%clk 0:02:38.1]} 17... Rxa5 {[%clk 0:02:49.8]} 18. a3 {[%clk
0:02:38.1]} 18... Nbd7 {[%clk 0:02:48.7]} 19. Bd3 {[%clk 0:02:36.7]} 19... Rb8
{[%clk 0:02:48.2]} 20. Nge2 {[%clk 0:02:35.6]} 20... h6 {[%clk 0:02:47.6]} 21.
Ka1 {[%clk 0:02:31.6]} 21... Nb6 {[%clk 0:02:43.4]} 22. h3 {[%clk 0:02:30.7]}
22... Nfd7 {[%clk 0:02:41.4]} 23. f4 {[%clk 0:02:27.5]} 23... f6 {[%clk
0:02:37.8]} 24. f5 {[%clk 0:02:25.2]} 24... Bf7 {[%clk 0:02:38.2]} 25. Nf4
{[%clk 0:02:25]} 25... g5 {[%clk 0:02:37.6]} 26. Ng2 {[%clk 0:02:23.4]} 26... c5
{[%clk 0:02:36.4]} 27. c3 {[%clk 0:02:20.7]} 27... cxd4 {[%clk 0:02:34.7]} 28.
cxd4 {[%clk 0:02:21.6]} 28... Nc4 {[%clk 0:02:35.6]} 29. Bxc4 {[%clk 0:02:15.9]}
29... Bxc4 {[%clk 0:02:36.5]} 30. Ne3 {[%clk 0:02:15.9]} 30... Ba6 {[%clk
0:02:36.6]} 31. Rd2 {[%clk 0:02:10.5]} 31... Kf7 {[%clk 0:02:34.7]} 32. h4
{[%clk 0:02:06]} 32... Bb7 {[%clk 0:02:26.8]} 33. hxg5 {[%clk 0:02:00.2]} 33...
Bxe4 {[%clk 0:02:26.2]} 34. Rxh6 {[%clk 0:01:49.8]} 34... fxg5 {[%clk
0:02:26.2]} 35. Ne2 {[%clk 0:01:36]} 35... Nf6 {[%clk 0:02:24.4]} 36. Nc3 {[%clk
0:01:33.8]} 36... Bf3 {[%clk 0:02:24.4]} 37. Rdh2 {[%clk 0:01:20.6]} 37... Ra7
{[%clk 0:02:05.3]} 38. R2h3 {[%clk 0:01:16.7]} 38... Bxg4 {[%clk 0:01:59.3]} 39.
Nxg4 {[%clk 0:01:14.7]} 39... Nxg4 {[%clk 0:02:00.2]} 40. Rh7+ {[%clk
0:01:14.6]} 40... Kf6 {[%clk 0:02:00.2]} 41. Nd5+ {[%clk 0:01:06.2]} 41... Kxf5
{[%clk 0:02:00.1]} 42. Nxe7+ {[%clk 0:01:06.1]} 42... Ke4 {[%clk 0:02:00]} 43.
Rg7 {[%clk 0:01:00]} 43... Nf2 {[%clk 0:01:28]} 44. Rh2 {[%clk 0:00:56.1]} 44...
Nd3 {[%clk 0:01:26.7]} 45. Re2+ {[%clk 0:00:51.3]} 45... Kf3 {[%clk 0:01:26.3]}
46. Rd2 {[%clk 0:00:51.3]} 46... Nc1 {[%clk 0:01:26.3]} 47. Rd1 {[%clk
0:00:45.5]} 47... Nb3+ {[%clk 0:01:26]} 48. Ka2 {[%clk 0:00:45.7]} 48... Ke2
{[%clk 0:01:24.5]} 49. Rg1 {[%clk 0:00:42.4]} 49... Rbb7 {[%clk 0:01:24.4]} 50.
Rg2+ {[%clk 0:00:20.3]} 50... Kf1 {[%clk 0:01:08.9]} 51. R7xg5 {[%clk
0:00:19.9]} 51... Rxe7 {[%clk 0:01:08.1]} 52. Rc2 {[%clk 0:00:18.2]} 52... Re1
{[%clk 0:01:07]} 53. Rf5+ {[%clk 0:00:17.7]} 1/2-1/2